bitfinex-derivatives/quotes_ETHF0:USTF0_20250326
["timestamp","ask_amount","ask_price","bid_price","bid_amount"]
[1742983382439,0.96746,2067.0,2066.9,2.33848]
[1742983382642,2.35416,2067.0,2066.9,2.33848]
[1742983382941,1.3867,2067.0,2066.9,2.33848]
[1742983385041,2.35416,2067.0,2066.9,2.33848]
[1742983385245,1.3867,2067.0,2066.9,2.33848]
[1742983386432,2.35416,2067.0,2066.9,2.33848]
[1742983386839,3.06306,2067.0,2066.9,2.33848]
[1742983388635,3.06306,2067.0,2066.9,1.371]
[1742983388834,0.96756,2066.8,2066.7,4.18262883]
[1742983389030,4.06556,2066.8,2066.7,5.56592883]
[1742983389342,4.06556,2066.8,2066.7,0.00725883]
[1742983389733,5.37586,2066.8,2066.7,0.00725883]
[1742983390046,5.37586,2066.8,2066.7,0.97486883]
[1742983390244,6.08116,2066.8,2066.7,0.97486883]
[1742983391145,6.08116,2066.8,2066.7,1.61536883]
[1742983392242,6.94449679,2066.8,2066.7,1.61536883]
[1742983392547,0.86333679,2066.8,2066.7,4.82316883]
[1742983392751,0.86333679,2066.8,2066.7,5.48246883]
[1742983393039,3.101,2067.0,2066.9,0.96751]
[1742983393347,4.3946,2067.0,2066.9,0.96751]
[1742983394449,5.36206,2067.0,2066.9,0.96751]
[1742983394650,0.96751,2066.9,2066.8,2.26473]
[1742983394834,2.26111,2066.9,2066.8,2.26473]
[1742983396849,0.96747,2067.1,2067.0,0.96742]
[1742983397647,0.96751,2067.0,2066.9,0.96749]
[1742983398547,2.28991,2067.0,2066.9,0.96749]
[1742983398848,1.3224,2067.0,2066.9,0.96749]
[1742983400854,7.2842,2067.2,2066.8,3.82719]
[1742983401053,1.3224,2067.1,2067.0,0.96746]
[1742983401350,2.28982,2067.1,2067.0,0.96746]
[1742983401551,2.96072,2067.1,2067.0,2.32246]
[1742983402649,0.96746,2067.0,2066.9,0.96747]
[1742983402847,2.046,2067.0,2066.9,2.32251]
[1742983403046,3.01346,2067.0,2066.9,2.32251]
[1742983403245,2.046,2067.0,2066.9,2.32251]
[1742983406356,3.01346,2067.0,2066.9,2.32251]
[1742983406653,1.391,2067.0,2066.9,2.32251]
[1742983407050,7.28421,2067.2,2067.1,0.96742]
[1742983408047,0.96742,2067.1,2067.0,1.65582]
[1742983408350,2.41856,2067.1,2066.7,3.21505883]
[1742983408658,0.96756,2066.8,2066.7,2.37134883]
[1742983408844,4.07856,2066.8,2066.7,2.37134883]
[1742983409050,5.40196,2066.8,2066.7,1.40375883]
[1742983409450,5.40196,2066.8,2066.7,0.97486883]
[1742983410156,5.40196,2066.8,2066.7,0.00725883]
[1742983411058,0.96775,2066.4,2066.3,41.76777]
[1742983411258,4.08775,2066.4,2066.3,43.06149]
[1742983411456,3.12,2066.4,2066.3,43.06149]
[1742983411763,4.08775,2066.4,2066.3,43.06149]
[1742983412059,4.5202,2066.4,2066.3,43.06149]
[1742983412761,5.48795,2066.4,2066.3,43.06149]
[1742983414054,4.5202,2066.4,2066.3,43.06149]
[1742983415262,5.48795,2066.4,2066.3,43.06149]
[1742983417760,5.48795,2066.4,2066.3,2.26149]
[1742983419759,6.19035,2066.4,2066.3,2.26149]
[1742983421065,5.48795,2066.4,2066.3,2.26149]
[1742983422365,5.48795,2066.4,2066.3,1.2937]
[1742983422769,0.96784,2066.2,2066.1,5.55612883]
[1742983423259,0.96784,2066.2,2066.1,4.87382883]
[1742983423565,1.66432,2066.3,2066.2,0.96784]
[1742983423963,0.96782,2066.3,2066.2,0.96784]
[1742983424162,2.30152,2066.3,2066.2,2.33944]
[1742983425072,1.3337,2066.3,2066.2,2.33944]
[1742983425268,0.6903,2066.5,2066.4,0.96775]
[1742983425473,6.1087,2066.5,2066.4,0.96775]
[1742983425770,5.4184,2066.5,2066.4,0.96775]
[1742983425969,5.4184,2066.5,2066.4,3.05205]
[1742983427167,4.18266957,2066.6,2066.5,0.9677]
[1742983427366,7.29866957,2066.6,2066.5,2.3438]
[1742983427671,6.33399957,2066.6,2066.5,2.3438]
[1742983430174,3.12619957,2066.6,2066.5,2.3438]
[1742983431677,4.09384957,2066.6,2066.5,2.3438]
[1742983431876,5.43564957,2066.6,2066.5,1.3761]
[1742983432077,6.76514957,2066.6,2066.5,1.3761]
[1742983432581,0.96779,2066.3,2066.2,4.1756]
[1742983432878,4.08779,2066.3,2066.2,5.54664]
[1742983433973,4.08779,2066.3,2066.2,1.371]
[1742983434174,7.29559,2066.3,2066.2,1.371]
[1742983435477,7.29559,2066.3,2066.2,2.33884]
[1742983436178,7.29559,2066.3,2066.2,1.371]
[1742983437277,7.29559,2066.3,2066.2,2.33884]
[1742983437477,4.08779,2066.3,2066.2,2.33884]
[1742983438085,4.08779,2066.3,2066.2,1.371]
[1742983438385,3.12,2066.3,2066.2,2.33884]
[1742983438578,3.124,2066.5,2066.4,0.96775]
[1742983438978,3.124,2066.5,2066.4,3.74325]
[1742983442678,4.4521,2066.5,2066.4,3.74325]
[1742983442878,5.4198,2066.5,2066.4,3.74325]
[1742983443278,5.4198,2066.5,2066.4,1.4102]
[1742983443682,5.4198,2066.5,2066.4,2.37795]
[1742983444071,4.4521,2066.5,2066.4,2.37795]
[1742983444279,3.124,2066.5,2066.4,2.37795]
[1742983445186,4.18265957,2066.6,2066.5,0.9677]
[1742983445482,7.31265957,2066.6,2066.5,2.2562]
[1742983445881,6.34499957,2066.6,2066.5,2.2562]
[1742983446081,6.34399957,2066.6,2066.5,2.2562]
[1742983447488,3.21499957,2066.6,2066.5,2.2562]
[1742983447694,6.34299957,2066.6,2066.5,2.2562]
[1742983447880,7.31064957,2066.6,2066.5,2.2562]
[1742983448193,8.60524957,2066.6,2066.5,2.2562]
[1742983449089,5.39744957,2066.6,2066.5,2.2562]
[1742983449580,4.42979957,2066.6,2066.5,2.2562]
[1742983451184,5.39744957,2066.6,2066.5,2.2562]
[1742983451384,6.08964957,2066.6,2066.5,1.2885]
[1742983451590,5.12199957,2066.6,2066.2,3.10455]
[1742983451787,0.96779,2066.4,2066.3,2.25215]
[1742983452002,0.96784,2066.2,2066.1,0.97510883]
[1742983452184,0.96784,2066.2,2066.1,2.25950883]
[1742983452492,6.08663,2066.3,2066.2,0.96784]
[1742983452789,6.08663,2066.3,2066.2,2.25224]
[1742983452983,5.1188,2066.3,2066.2,2.25224]
[1742983453180,6.08659,2066.3,2066.2,2.25224]
[1742983454992,5.1188,2066.3,2066.2,2.25224]
[1742983455183,4.4773,2066.3,2066.2,2.25224]
[1742983455384,3.128,2066.3,2066.2,2.25224]
[1742983455790,3.128,2066.3,2066.2,5.46004]
[1742983457093,3.127,2066.5,2066.4,0.96775]
[1742983457392,3.13419957,2066.6,2066.5,0.9677]
[1742983457978,3.13419957,2066.6,2066.5,2.3197]
[1742983458686,0.00719957,2066.6,2066.5,2.3197]
[1742983464189,1.40559957,2066.6,2066.5,2.3197]
[1742983465795,2.37324957,2066.6,2066.5,2.3197]
[1742983466193,0.96775,2066.5,2066.4,0.9677]
[1742983466396,3.06995,2066.5,2066.4,0.9677]
[1742983466592,0.96775,2066.4,2066.3,2.37485]
[1742983466793,5.49425,2066.4,2066.3,0.96775]
[1742983469503,0.96779,2066.3,2066.2,2.3749]
[1742983469803,3.03279,2066.3,2066.2,2.3749]
[1742983471198,3.03279,2066.3,2066.2,0.9678]
[1742983472194,0.96784,2066.2,2066.1,2.27061883]
[1742983472401,2.25764,2066.2,2066.1,2.27061883]
[1742983472602,2.94574,2066.2,2066.1,2.27061883]
[1742983473402,1.9779,2066.2,2066.1,2.27061883]
[1742983473602,2.25764,2066.2,2066.1,2.27061883]
[1742983474505,1.2898,2066.2,2066.1,2.27061883]
[1742983474698,2.25764,2066.2,2066.1,2.27061883]
[1742983475002,1.2898,2066.2,2066.1,2.27061883]
[1742983475400,1.2898,2066.2,2066.1,2.92281883]
[1742983475601,2.25764,2066.2,2066.1,2.92281883]
[1742983475797,1.2898,2066.2,2066.1,2.92281883]
[1742983477502,2.25764,2066.2,2066.1,2.92281883]
[1742983477708,1.2898,2066.2,2066.1,2.92281883]
[1742983479808,3.125,2066.4,2066.3,0.96779]
[1742983480009,4.4133,2066.4,2066.3,0.96779]
[1742983480211,1.2883,2066.4,2066.3,0.96779]
[1742983480511,4.4053,2066.4,2066.3,1.61039]
[1742983480705,1.2883,2066.4,2066.3,1.61039]
[1742983480902,1.32319957,2066.6,2066.5,0.9677]
[1742983481101,4.44019957,2066.6,2066.5,0.9677]
[1742983481306,3.12419957,2066.6,2066.5,0.9677]
[1742983481504,3.12419957,2066.6,2066.5,1.6713]
[1742983481710,4.09184957,2066.6,2066.5,1.6713]
[1742983481910,5.40784957,2066.6,2066.5,1.6713]
[1742983483211,0.9677,2066.5,2066.4,1.4123]
[1742983483402,0.96779,2066.3,2066.2,0.96781]
[1742983483602,4.08779,2066.3,2066.2,2.31381]
[1742983483914,4.08779,2066.3,2066.2,2.31384]
[1742983484415,3.12,2066.3,2066.2,2.31384]
[1742983485419,2.30235,2066.4,2066.3,0.96779]
[1742983485709,2.30235,2066.4,2066.3,2.31379]
[1742983495319,2.30235,2066.4,2066.3,1.346]
[1742983495516,2.30235,2066.4,2066.3,2.31379]
[1742983495710,2.30235,2066.4,2066.3,1.346]
[1742983495912,0.96779,2066.3,2066.2,0.96781]
[1742983496111,2.94539,2066.3,2066.2,2.35311]
[1742983498323,1.9776,2066.3,2066.2,2.35311]
[1742983498516,1.2889,2066.3,2066.2,2.35311]
[1742983498715,0.97489957,2066.6,2066.5,0.9677]
[1742983498926,5.41869957,2066.6,2066.5,0.9677]
[1742983499316,5.41869957,2066.6,2066.5,2.3693]
[1742983499517,6.12139957,2066.6,2066.5,2.3693]
[1742983501824,5.41869957,2066.6,2066.5,2.3693]
[1742983503824,6.28239302,2066.6,2066.5,2.3693]
[1742983504127,6.93769302,2066.6,2066.5,2.3693]
[1742983504522,6.93769302,2066.6,2066.5,1.4016]
[1742983504730,6.93769302,2066.6,2066.5,2.3693]
[1742983504928,0.96775,2066.4,2066.3,0.96775]
[1742983506018,1.2784,2066.5,2066.4,0.96775]
[1742983506218,2.2461,2066.5,2066.4,0.96775]
[1742983507026,0.96775,2066.4,2066.3,1.3087]
[1742983507227,2.24615,2066.4,2066.3,2.27649]
[1742983509828,0.96779,2066.3,2066.2,0.96782]
[1742983510032,6.05409,2066.3,2066.2,2.32762]
[1742983512835,4.09379,2066.3,2066.2,2.32762]
[1742983519237,3.126,2066.3,2066.2,2.32762]
[1742983519434,4.09379,2066.3,2066.2,2.32762]
[1742983524245,4.74319,2066.3,2066.2,2.32762]
[1742983524543,4.74319,2066.3,2066.2,1.3598]
[1742983524733,4.74319,2066.3,2066.2,2.32764]
[1742983524928,4.74319,2066.3,2066.2,0.96784]
[1742983526046,4.74319,2066.3,2066.2,2.31984]
[1742983528438,3.7754,2066.3,2066.1,0.00725883]
[1742983528646,3.7754,2066.3,2066.1,2.32710883]
[1742983528647,2.96464,2066.2,2066.1,2.32710883]
[1742983529041,1.9968,2066.2,2066.1,2.32710883]
[1742983529243,1.9968,2066.2,2066.1,3.03300883]
[1742983530043,2.96464,2066.2,2066.1,3.03300883]
[1742983530846,2.96464,2066.2,2066.1,2.06515883]
[1742983531139,2.96464,2066.2,2066.1,0.97514883]
[1742983531446,2.96464,2066.2,2066.1,2.33754883]
[1742983533445,2.96464,2066.2,2066.1,1.36965883]
[1742983534045,6.17244,2066.2,2066.1,1.36965883]
[1742983534351,7.03662028,2066.2,2066.1,1.36965883]
[1742983535750,7.03662028,2066.2,2066.1,0.00725883]
[1742983536947,0.96798,2065.9,2065.8,42.43763]
[1742983537146,4.07298,2065.9,2065.8,1.63763]
[1742983538139,0.96803,2065.8,2065.7,45.62315]
[1742983538335,2.31353,2065.8,2065.7,45.62315]
[1742983538648,0.96807,2065.7,2065.6,0.00725883]
[1742983538951,1.64957,2065.7,2065.6,0.00725883]
[1742983539848,2.99507,2065.7,2065.6,0.00725883]
[1742983541949,2.99507,2065.7,2065.6,1.34385883]
[1742983542140,2.99507,2065.7,2065.6,0.00725883]
[1742983542536,2.99507,2065.7,2065.6,1.34385883]
[1742983544354,5.41957,2065.7,2065.6,1.34385883]
[1742983544746,5.41957,2065.7,2065.6,2.31197883]
[1742983544945,1.3455,2065.7,2065.6,2.31197883]
[1742983545150,0.96801,2065.9,2065.8,0.96803]
[1742983545345,3.109,2065.9,2065.8,0.96803]
[1742983546551,4.07889,2066.1,2066.0,0.96793]
[1742983546752,3.111,2066.1,2066.0,0.96793]
[1742983547049,3.112,2066.2,2066.0,3.74714]
[1742983547250,3.112,2066.2,2066.1,0.96789]
[1742983547550,3.112,2066.2,2066.1,2.26899]
[1742983547749,3.112,2066.2,2066.1,43.06899]
[1742983548148,4.07984,2066.2,2066.1,43.06899]
[1742983549053,3.112,2066.2,2066.1,43.06899]
[1742983551249,3.112,2066.2,2066.1,2.26899]
[1742983551947,2.28305,2066.4,2066.3,0.96779]
[1742983552254,5.39105,2066.4,2066.3,0.96779]
[1742983552642,5.39105,2066.4,2066.3,1.65969]
[1742983555251,5.39105,2066.4,2066.3,0.6919]
[1742983555452,0.96779,2066.3,2066.2,2.34541]
[1742983555652,2.28709,2066.3,2066.2,0.96781]
[1742983557457,1.3193,2066.3,2066.2,0.96781]
[1742983559246,2.28709,2066.3,2066.2,0.96781]
[1742983559448,1.3193,2066.3,2066.2,0.96781]
[1742983559650,2.28709,2066.3,2066.2,0.96781]
[1742983560051,1.3193,2066.3,2066.2,0.96781]
[1742983560458,2.28709,2066.3,2066.2,0.96781]
[1742983561144,0.96788,2066.2,2066.1,0.96785]
[1742983561347,2.33128,2066.2,2066.1,0.96785]
[1742983561649,1.3634,2066.2,2066.1,0.96785]
[1742983561853,4.07578,2066.4,2066.1,2.41972]
[1742983562054,5.43918,2066.4,2066.3,0.96779]
[1742983563158,0.96784,2066.3,2066.2,0.9678]
[1742983563557,2.26514,2066.3,2066.2,0.9678]
[1742983568458,1.2973,2066.3,2066.2,2.294]
[1742983569362,5.62706,2066.5,2066.2,2.294]
[1742983569363,3.2078,2066.5,2066.2,3.74579]
[1742983569563,4.06675,2066.4,2066.3,2.96989]
[1742983569856,3.099,2066.4,2066.3,3.66279]
[1742983570071,4.17554,2066.5,2066.4,0.96775]
[1742983570263,6.3068,2066.5,2066.4,2.27795]
[1742983570465,7.2745,2066.5,2066.4,2.27795]
[1742983570658,8.6439,2066.5,2066.4,2.27795]
[1742983571760,7.6762,2066.5,2066.4,2.27795]
[1742983572365,8.6439,2066.5,2066.4,2.27795]
[1742983572568,7.6762,2066.5,2066.4,2.27795]
[1742983572860,3.2078,2066.5,2066.4,2.27795]
[1742983573461,5.37015957,2066.6,2066.5,0.9677]
[1742983573659,5.37015957,2066.6,2066.5,2.2934]
[1742983575564,5.37015957,2066.6,2066.5,1.3257]
[1742983576068,5.37015957,2066.6,2066.5,2.2934]
[1742983576675,5.37015957,2066.6,2066.5,1.3257]
[1742983577055,5.37015957,2066.6,2066.5,2.2934]
[1742983577459,1.29949957,2066.6,2066.5,2.2934]
[1742983577767,5.36914957,2066.6,2066.5,2.2934]
[1742983578267,4.40149957,2066.6,2066.5,2.2934]
[1742983578567,5.36914957,2066.6,2066.5,2.2934]
[1742983580867,0.96775,2066.5,2066.4,0.9677]
[1742983581070,2.36395,2066.5,2066.4,2.2788]
[1742983583972,3.68345,2066.5,2066.4,2.2788]
[1742983584371,3.68345,2066.5,2066.4,1.3111]
[1742983585671,3.68345,2066.5,2066.4,2.27885]
[1742983586381,3.02985,2066.5,2066.4,2.27885]
[1742983587175,2.3639,2066.5,2066.4,2.27885]
[1742983587566,7.28468957,2066.6,2066.5,0.9677]
[1742983587771,8.69378957,2066.6,2066.5,2.2897]
[1742983589767,0.9677,2066.5,2066.4,0.96772]
[1742983589968,3.0826,2066.5,2066.4,2.28262]
[1742983590170,3.0826,2066.5,2066.4,1.3149]
[1742983590468,0.96779,2066.3,2066.2,0.96779]
[1742983590669,4.06879,2066.3,2066.2,0.96779]
[1742983590876,0.96789,2066.1,2066.0,1.3398]
[1742983591077,0.96789,2066.1,2066.0,0.645]
[1742983591274,0.7024,2066.2,2065.6,4.18314883]
[1742983591478,0.96807,2065.7,2065.6,3.86005883]
[1742983591775,4.07607,2065.7,2065.6,3.21505883]
[1742983591976,4.07607,2065.7,2065.2,4.5227]
[1742983591977,2.42038,2065.6,2065.2,4.5227]
[1742983592273,0.96826,2065.4,2065.3,43.08314]
[1742983592466,4.08026,2065.4,2065.3,43.08314]
[1742983592666,4.08026,2065.4,2065.3,42.1149]
[1742983592878,4.08026,2065.4,2065.3,1.3149]
[1742983594873,0.96831,2065.2,2065.1,3.65140883]
[1742983595579,0.96831,2065.2,2065.1,0.00725883]
[1742983595774,0.96831,2065.2,2065.1,1.36295883]
[1742983595979,0.96831,2065.2,2065.1,2.33130883]
[1742983597770,2.30309,2065.3,2065.2,0.96831]
[1742983597976,2.30309,2065.3,2065.2,2.31341]
[1742983598182,2.30309,2065.3,2065.2,1.3451]
[1742983599182,2.30309,2065.3,2065.2,2.31341]
[1742983599386,2.30309,2065.3,2065.2,1.3451]
[1742983599585,2.30309,2065.3,2065.2,2.31341]
[1742983600079,2.30309,2065.3,2065.2,1.3451]
[1742983600277,2.30309,2065.3,2065.2,2.31341]
[1742983601081,1.3348,2065.3,2065.2,5.52121]
[1742983601270,1.296,2065.5,2065.4,0.96818]
[1742983601474,3.21505883,2065.6,2065.5,0.96817]
[1742983601676,6.32905883,2065.6,2065.5,41.76817]
[1742983602384,6.32905883,2065.6,2065.5,43.13567]
[1742983602684,7.29717883,2065.6,2065.5,43.13567]
[1742983603277,0.00725883,2065.6,2065.5,43.13567]
[1742983603679,0.97537883,2065.6,2065.5,42.1675]
[1742983603883,2.30917883,2065.6,2065.5,42.1675]
[1742983604278,2.99927883,2065.6,2065.5,42.1675]
[1742983604682,0.96821,2065.4,2065.3,0.96824]
[1742983604987,4.09121,2065.4,2065.3,2.33574]
[1742983605285,4.09121,2065.4,2065.3,2.33576]
[1742983606388,3.123,2065.4,2065.3,2.33576]
[1742983607788,4.09121,2065.4,2065.3,2.33576]
[1742983608374,3.123,2065.4,2065.3,2.33576]
[1742983608890,4.09121,2065.4,2065.3,2.33576]
[1742983609089,3.123,2065.4,2065.3,2.33576]
[1742983609686,4.09121,2065.4,2065.3,2.33576]
[1742983610281,3.123,2065.4,2065.3,2.33576]
[1742983610480,4.09121,2065.4,2065.3,2.33576]
[1742983611190,3.123,2065.4,2065.3,2.33576]
[1742983611691,0.97538883,2065.6,2065.5,0.96817]
[1742983611987,3.12725883,2065.6,2065.5,0.96817]
[1742983613979,4.09537883,2065.6,2065.5,0.96817]
[1742983614378,3.12725883,2065.6,2065.5,0.96817]
[1742983614787,4.09537883,2065.6,2065.5,0.96817]
[1742983615092,3.12725883,2065.6,2065.5,0.96817]
[1742983615592,4.09537883,2065.6,2065.5,0.96817]
[1742983617295,3.12725883,2065.6,2065.5,0.96817]
[1742983617895,4.51035883,2065.6,2065.5,0.96817]
[1742983618192,3.12725883,2065.6,2065.5,0.96817]
[1742983620188,0.00725883,2065.6,2065.5,6.11597]
[1742983620389,3.116,2066.1,2066.0,0.96789]
[1742983620586,5.48289,2066.1,2066.0,0.96789]
[1742983620894,5.48289,2066.1,2066.0,3.68589]
[1742983621994,4.515,2066.1,2066.0,3.68589]
[1742983622893,1.399,2066.1,2066.0,3.68589]
[1742983623094,1.399,2066.2,2066.1,0.96789]
[1742983623283,0.00725883,2066.3,2066.2,0.96784]
[1742983623483,3.12725883,2066.3,2066.2,0.96784]
[1742983623693,3.12725883,2066.3,2066.2,2.25054]
[1742983625495,3.12725883,2066.3,2066.2,43.05054]
[1742983625496,0.00725883,2066.3,2066.2,43.05054]
[1742983626689,1.40655883,2066.3,2066.2,2.25054]
[1742983630098,0.00725883,2066.3,2066.2,2.25054]
[1742983634891,1.37195883,2066.3,2066.2,2.25054]
[1742983635099,0.00725883,2066.3,2066.2,2.25054]
[1742983637601,0.00725883,2066.3,2066.2,4.59054]
[1742983637795,0.00725883,2066.3,2066.2,2.25054]
[1742983640399,0.7017,2066.6,2066.5,0.9677]
[1742983640595,2.41857,2067.1,2066.7,0.96761]
[1742983640596,0.6984,2066.8,2066.7,0.96761]
[1742983640901,3.8094,2066.8,2066.7,0.96761]
[1742983641103,6.07116,2066.8,2066.7,0.96761]
[1742983641300,6.07116,2066.8,2066.7,2.33431]
[1742983642707,6.07116,2066.8,2066.7,43.13431]
[1742983644305,6.07116,2066.8,2066.7,0.96761]
[1742983646905,5.1036,2066.8,2066.7,0.96761]
[1742983647201,6.07116,2066.8,2066.7,0.96761]
[1742983650212,0.96761,2066.7,2066.6,2.33071]
[1742983650415,2.33281,2066.7,2066.6,2.33071]
[1742983656705,2.33281,2066.7,2066.6,1.3631]
[1742983656905,2.33281,2066.7,2066.5,3.21505883]
[1742983656906,0.96765,2066.6,2066.5,3.21505883]
[1742983657109,3.02045,2066.6,2066.5,4.18271883]
[1742983657313,3.02045,2066.6,2066.5,46.39681883]
[1742983658213,1.4139,2066.6,2066.5,46.39681883]
[1742983658610,2.38155,2066.6,2066.5,46.39681883]
[1742983659013,1.4139,2066.6,2066.5,46.39681883]
[1742983659313,2.38155,2066.6,2066.5,46.39681883]
[1742983662022,1.4139,2066.6,2066.5,46.39681883]
[1742983662723,2.38155,2066.6,2066.5,46.39681883]
[1742983663415,1.4139,2066.6,2066.5,46.39681883]
[1742983664723,2.24763,2066.7,2066.6,0.96765]
[1742983665020,2.24763,2066.7,2066.6,2.28545]
[1742983666714,1.28,2066.7,2066.6,2.28545]
[1742983667217,0.69249957,2067.0,2066.7,0.96761]
[1742983667426,1.3149,2066.9,2066.8,0.96756]
[1742983667624,0.00719957,2067.0,2066.8,0.96756]
[1742983667625,0.00719957,2067.0,2066.9,0.96751]
[1742983667815,48.804,2067.5,2066.9,1.86]
[1742983667816,1.3149,2067.2,2066.9,1.86]
[1742983668122,4.06534,2067.3,2067.2,0.96732]
[1742983668320,1.83114763,2067.4,2067.2,1.384]
[1742983668520,4.4169,2067.3,2067.2,2.35137]
[1742983668721,1.3149,2067.3,2067.2,2.35137]
[1742983668920,4.4229,2067.3,2067.2,2.35137]
[1742983669320,5.39022,2067.3,2067.2,2.35137]
[1742983672525,4.4229,2067.3,2067.2,2.35137]
[1742983672826,4.4229,2067.3,2067.2,2.99377]
[1742983673415,5.39022,2067.3,2067.2,2.99377]
[1742983674310,4.4229,2067.3,2067.2,2.99377]
[1742983674515,5.39022,2067.3,2067.2,2.99377]
[1742983674823,4.4229,2067.3,2067.2,2.99377]
[1742983675223,5.39022,2067.3,2067.2,2.99377]
[1742983675422,4.4229,2067.3,2067.2,2.99377]
[1742983675619,5.39022,2067.3,2067.2,2.99377]
[1742983675819,1.3149,2067.3,2067.2,2.99377]
[1742983676119,1.3722,2067.5,2067.4,0.96728]
[1742983676120,4.75514,2067.5,2067.4,0.96728]
[1742983676321,6.79324,2067.5,2067.4,0.96728]
[1742983676720,6.12904,2067.5,2067.4,2.33018]
[1742983676914,3.02803,2067.5,2067.4,2.33018]
[1742983677118,6.13103,2067.5,2067.4,2.33018]
[1742983680531,5.1638,2067.5,2067.4,2.33018]
[1742983680739,4.4769,2067.5,2067.4,2.33018]
[1742983681726,5.44413,2067.5,2067.4,2.33018]
[1742983681921,4.4769,2067.5,2067.4,2.33018]
[1742983682625,5.44413,2067.5,2067.4,2.33018]
[1742983682933,4.4769,2067.5,2067.4,2.33018]
[1742983683232,5.44413,2067.5,2067.4,2.33018]
[1742983683533,4.4769,2067.5,2067.4,2.33018]
[1742983685029,4.4769,2067.5,2067.4,5.53798]
[1742983685931,1.3739,2067.5,2067.4,5.53798]
[1742983689423,1.3561,2067.9,2067.4,4.5707]
[1742983689626,1.2946,2067.6,2067.5,3.00083]
[1742983693130,2.26178,2067.6,2067.5,2.30983]
[1742983693329,0.96723,2067.5,2067.4,4.17504]
[1742983693524,2.34023,2067.5,2067.4,4.17504]
[1742983694339,2.34023,2067.5,2067.4,5.48654]
[1742983697134,2.34023,2067.5,2067.4,2.27874]
[1742983697937,2.34023,2067.5,2067.4,0.96724]
[1742983699942,0.96728,2067.4,2067.3,2.29091]
[1742983700139,5.34738,2067.4,2067.3,2.29091]
[1742983700337,0.96732,2067.3,2067.2,0.96734]
[1742983700539,0.96737,2067.2,2067.1,5.48289]
[1742983700733,0.96737,2067.2,2067.1,3.2078]
[1742983700933,0.96742,2067.1,2067.0,2.27513]
[1742983701345,4.05942,2067.1,2067.0,2.27513]
[1742983707957,4.05942,2067.1,2067.0,1.3077]
[1742983708245,0.96751,2066.9,2066.8,3.2078]
[1742983708546,0.96751,2066.9,2066.8,5.49366]
[1742983709038,2.25211,2066.9,2066.8,5.49366]
[1742983709546,1.2846,2066.9,2066.8,5.49366]
[1742983710133,4.05946,2067.1,2067.0,0.96746]
[1742983710749,5.34406,2067.1,2067.0,2.34086]
[1742983712149,5.34502,2067.1,2067.0,2.34086]
[1742983715451,5.34502,2067.1,2067.0,1.3734]
[1742983715654,5.34502,2067.1,2067.0,2.34086]
[1742983716045,5.34502,2067.1,2067.0,1.3734]
[1742983716350,5.34502,2067.1,2067.0,2.34086]
[1742983717754,5.34502,2067.1,2067.0,1.3734]
[1742983718555,0.96746,2067.0,2066.9,2.38198]
[1742983718755,2.36186,2067.0,2066.9,0.96748]
[1742983720352,0.96751,2066.9,2066.8,4.17535]
[1742983720655,2.36191,2066.9,2066.8,4.17535]
[1742983721954,0.96749,2067.0,2066.9,0.96751]
[1742983722156,0.96749,2067.0,2066.9,1.64181]
[1742983722855,2.35169,2067.0,2066.9,1.64181]
[1742983723057,4.06046,2067.1,2067.0,0.96746]
[1742983723254,5.44466,2067.1,2067.0,0.96746]
[1742983724455,5.44466,2067.1,2067.0,1.33256]
[1742983725257,5.44466,2067.1,2067.0,0.3651]
[1742983726154,5.44466,2067.1,2067.0,0.4338]
[1742983731560,0.96751,2066.9,2066.8,3.2198]
[1742983731762,0.96751,2066.9,2066.8,0.012]
[1742983732255,2.98321,2066.9,2066.8,0.012]
[1742983732957,0.96765,2066.6,2066.5,44.01505883]
[1742983733157,4.06065,2066.6,2066.5,44.98275883]
[1742983733759,6.12955,2066.6,2066.5,44.01505883]
[1742983734263,6.12955,2066.6,2066.5,44.98275883]
[1742983736460,5.42325,2066.6,2066.5,44.98275883]
[1742983737764,3.093,2066.6,2066.5,44.98275883]
[1742983738162,3.093,2066.8,2066.7,0.96761]
[1742983739068,3.093,2066.8,2066.7,1.66581]
[1742983739467,4.06056,2066.8,2066.7,1.66581]
[1742983739867,4.06056,2066.8,2066.7,2.31631]
[1742983740272,3.093,2066.8,2066.7,2.31631]
[1742983740968,4.06056,2066.8,2066.7,2.31631]
[1742983741868,5.45516,2066.8,2066.7,2.31631]
[1742983743867,5.45516,2066.8,2066.7,0.6505]
[1742983744068,5.45516,2066.8,2066.7,1.61811]
[1742983744363,5.45516,2066.8,2066.7,2.91681]
[1742983752463,4.06056,2066.8,2066.7,2.91681]
[1742983763186,3.093,2066.8,2066.7,2.91681]
[1742983763493,4.06056,2066.8,2066.7,2.91681]
[1742983763696,5.34156,2066.8,2066.7,2.91681]
[1742983764799,4.374,2066.8,2066.7,2.91681]
[1742983765099,5.34156,2066.8,2066.7,2.91681]
[1742983766490,4.374,2066.8,2066.7,2.91681]
[1742983766691,1.3624,2067.1,2067.0,0.96746]
[1742983766692,1.63663,2067.1,2067.0,0.96746]
[1742983766892,4.72963,2067.1,2067.0,0.96746]
[1742983767501,4.72963,2067.1,2067.0,1.63086]
[1742983767996,4.72963,2067.1,2067.0,3.01696]
[1742983771605,4.06043,2067.1,2067.0,3.01696]
[1742983774807,5.44063,2067.1,2067.0,3.01696]
[1742983776608,4.4732,2067.1,2067.0,3.01696]
[1742983776910,5.44062,2067.1,2067.0,3.01696]
[1742983777311,4.4732,2067.1,2067.0,3.01696]
[1742983777511,5.44062,2067.1,2067.0,3.01696]
[1742983777714,4.4732,2067.1,2067.0,3.01696]